Cogmind - Beta 9.6 @@@ ROGUE MODE // 2020.06.27 @ 20:58:23 Player: TBExtent Result: Self-destructed Performance ------------- Evolutions (3) 1500 Regions Visited (7) 1400 Robots Destroyed (106) 530 Value Destroyed (2747) 2747 Prototype IDs (35) 700 Alien Tech Used (0) 0 Bonus (43) 43 TOTAL SCORE: 6920 Bonus ------- High Alert Combat Kills 175 Aligned with FarCom 300 Friendly Fire -432 Cogmind --------- Core Integrity 609/700 Matter 300/300 Energy 21/100 System Corruption 4% Temperature Cool (64) Movement Walking (153) Ox1 Location -7/Lower Caves Parts ------- > --- POWER (1) -------- (None) > --- PROPULSION (4) --- Aluminum Leg Aluminum Leg Improved Titanium Leg > --- UTILITY (6) ------ Medium Storage Unit Medium Storage Unit Large Storage Unit Large Storage Unit Long-range Sensor Array Advanced Signal Interpreter > --- WEAPON (2) ------- Heavy Particle Gun Heavy Particle Gun > --- INVENTORY (24) --- Improved Heat Sink Improved Cooling System Medium Storage Unit Gravity Neutralizing Apparatus Advanced Sensor Array Improved Salvage Targeting Computer Improved Salvage Targeting Computer Improved Propulsion Shielding Improved Utility Shielding Hacking Suite Hacking Suite Hacking Suite Hacking Suite Lightning Gun Electrolaser Heavy Rocket Launcher Remote Datajack Plasma Cutter Peak State ------------ > --- POWER ------------ Reinforced Fission Core > --- PROPULSION ------- Aluminum Leg Aluminum Leg Advanced Myomer Leg Advanced Myomer Leg > --- UTILITY ---------- Improved Cooling System Medium Storage Unit Medium Storage Unit Medium Storage Unit Large Storage Unit Large Storage Unit > --- WEAPON ----------- Heavy Particle Gun Heavy Particle Gun > --- INVENTORY -------- Light Nuclear Core Light Angular Momentum Engine Improved Flight Unit Improved Heat Sink Gravity Neutralizing Apparatus Advanced Sensor Array Improved Signal Interpreter Advanced Signal Interpreter Long-range Terrain Scanner Improved Salvage Targeting Computer Improved Salvage Targeting Computer Advanced Weapon Cycler Cloak of Protection Improved Propulsion Shielding Improved Propulsion Shielding Improved Utility Shielding Improved Medium Armor Plating 8R-AWN's Armor/EX Hacking Suite Hacking Suite Hacking Suite Lightning Gun Electrolaser Heavy Particle Gun Remote Datajack Field Lobotomy Kit Longsword +1 [Rating: 54] Favorites ----------- Power Reinforced Fission Core Engine Ion Engine Power Core Reinforced Fission Core Propulsion Aluminum Leg Treads Light Treads Leg Aluminum Leg Flight Unit VTOL Module Utility Large Storage Unit Device Long-range Sensor Array Storage Large Storage Unit Processor Targeting Computer Protection 8R-AWN's Armor/EX Weapon Heavy Particle Gun Energy Gun Heavy Particle Gun Ballistic Gun Autogun Launcher Grenade Launcher Special Weapon Field Lobotomy Kit Impact Weapon Hammer Slashing Weapon Longsword +1 Build | -11 -10 -10 -10 -9 -8 -7 -7 ------- Run | Scr Mat Min Exi Min Mat Fac Low Slots Evolved 6 | . . . . . 4 2 . Power . | . . . . . . . . Propulsion 2 | . . . . . 1 1 . Utility 4 | . . . . . 3 1 . Weapon . | . . . . . . . . Parts Attached 98 | . 11 . 16 3 54 11 3 Power 4 | . 1 . 2 . . . 1 Engine 3 | . 1 . 1 . . . 1 Core 1 | . . . 1 . . . . Reactor . | . . . . . . . . Propulsion 24 | . 1 . 6 2 11 4 . Treads 5 | . . . 4 . . 1 . Leg 18 | . 1 . 2 2 11 2 . Wheel . | . . . . . . . . Hover . | . . . . . . . . Flight 1 | . . . . . . 1 . Utility 18 | . 3 . 2 . 8 3 2 Device 7 | . . . 1 . 3 2 1 Storage 8 | . 3 . 1 . 3 1 . Processor 2 | . . . . . 1 . 1 Hackware . | . . . . . . . . Protection 1 | . . . . . 1 . . Artifact . | . . . . . . . . Weapon 52 | . 6 . 6 1 35 4 . Energy Gun 15 | . . . . . 12 3 . Energy Cannon . | . . . . . . . . Ballistic Gun 18 | . 4 . 2 1 11 . . Ballistic Cannon . | . . . . . . . . Launcher 6 | . 1 . 1 . 4 . . Special Weapon 2 | . . . 2 . . . . Impact Weapon 1 | . 1 . . . . . . Slashing Weapon 10 | . . . 1 . 8 1 . Piercing Weapon . | . . . . . . . . Special Melee Weapon . | . . . . . . . . Unidentified Prototypes 8 | . . . . . 8 . . Parts Lost 25 | . 1 . 7 . 15 2 . Power 2 | . . . 2 . . . . Propulsion 11 | . . . 4 . 6 1 . Utility 1 | . . . . . 1 . . Weapon 11 | . 1 . 1 . 8 1 . Highest Loss Streak 7 | . 1 . 7 . 6 1 . Average Slot Usage (%) 98 | . 98 100 97 100 97 99 98 Engine 4 | . 14 14 11 . . . . Core 5 | . . . 1 14 9 7 6 Leg 27 | . 28 28 24 28 26 28 29 Device 2 | . . . . . 2 6 7 Storage 32 | . 26 28 27 28 36 38 30 Processor 2 | . . . . . 4 . 6 Energy Gun 6 | . 1 . . . 6 14 15 Ballistic Gun 12 | . 26 28 24 28 10 . . Naked Turns . | . . . . . . . . Heaviest Build 85 | 13 43 43 64 59 84 85 77 Greatest Support 80 | 20 20 20 40 23 70 80 70 Greatest Overweight (x) 3 | . 2 2 3 2 2 1 1 Average Overweight (x) 1 | . 1 2 1 2 1 1 1 Largest Inventory Capacity 28 | . 16 16 16 16 28 28 28 Average Capacity 21 | . 14 16 15 16 24 28 24 Most Carried 28 | . 16 16 16 16 28 28 27 Average Carried 20 | . 13 16 15 16 23 27 20 Final Capacity 28 | 6 16 16 16 16 28 28 24 Final Carried 28 | 6 16 16 16 16 25 28 18 Class Distribution -------------------- 58% | Scavenger-Mutant 33% | Mutant 8% | Hauler-Mutant Dominant Class ---------------- Mutant | -10/Materials Mutant | -10/Mines Mutant | -10/Exiles Mutant | -9/Mines Scavenger-Mutant | -8/Materials Scavenger-Mutant | -7/Factory Scavenger-Mutant | -7/Lower Caves Resources | -11 -10 -10 -10 -9 -8 -7 -7 ----------- Run | Scr Mat Min Exi Min Mat Fac Low Matter Collected 2481 | 200 360 . 115 82 1560 110 54 Remotely . | . . . . . . . . Salvage Created 3728 | . 722 . 132 82 2320 472 . Parts 187 | . 33 . 6 4 119 25 . Haulers Intercepted 10 | . 2 . . . 6 2 . Recyclers Shooed 4 | . . . . . 4 . . Parts Field Recycled . | . . . . . . . . Retrieved Matter . | . . . . . . . . Parts Self-Destructed . | . . . . . . . . Prevented . | . . . . . . . . Kills | -11 -10 -10 -10 -9 -8 -7 -7 ------- Run | Scr Mat Min Exi Min Mat Fac Low Combat Hostiles Destroyed 79 | . 13 . 6 2 49 9 . Melee 3 | . . . 1 . 2 . . Guns 56 | . 11 . 1 2 33 9 . AOE 20 | . 2 . 4 . 14 . . Classes Destroyed 14 | . 7 . 1 1 4 1 . Worker 5 | . 1 . . . 4 . . Builder 1 | . . . . . 1 . . Hauler 10 | . 2 . . . 6 2 . Recycler 4 | . 1 . . . 3 . . Mechanic 1 | . . . . . 1 . . Operator 4 | . 3 . . . 1 . . Watcher 2 | . 1 . . . 1 . . Swarmer 24 | . 3 . . . 18 3 . Grunt 33 | . 10 . . 1 19 3 . Duelist 2 | . . . . 1 1 . . Sentry 10 | . . . . . 9 1 . Hunter 2 | . . . . . 2 . . Programmer 2 | . . . . . . 2 . Assembled 5 | . . . 5 . . . . Best Kill Streak 14 | . 3 . 4 2 14 4 . Combat Bots Only 7 | . 3 . 4 2 7 3 . Max Kills in Single Turn 4 | . 3 . 3 1 4 1 . Gunslinging . | . . . . . . . . Exploded 3 | . 2 . 3 . 3 . . Melee 1 | . . . 1 . 1 . . Uniques/NPCs Destroyed 1 | . . . 1 . . . . 8R-AWN (-10/Exiles) Combat | -11 -10 -10 -10 -9 -8 -7 -7 -------- Run | Scr Mat Min Exi Min Mat Fac Low Damage Taken 4964 | . 465 . 945 129 2939 457 29 Core 847 | . 100 . 132 . 524 91 . Absorbed by Shields 270 | . . . . . 270 . . Core Remaining (%) 37 | 100 . . . 7 4 . . Volleys Fired 312 | . 55 . 6 12 169 39 31 Largest 2 | . 2 . 2 2 2 2 2 Hottest 110 | . 60 . 46 46 110 110 110 Shots Fired 590 | . 110 . 9 23 310 78 60 Gun 579 | . 108 . 6 23 304 78 60 Cannon . | . . . . . . . . Launcher 11 | . 2 . 3 . 6 . . Special . | . . . . . . . . Kinetic 331 | . 91 . 6 23 211 . . Thermal 231 | . . . . . 93 78 60 Explosive 11 | . 2 . 3 . 6 . . Electromagnetic 17 | . 17 . . . . . . Robot Hit Streak 19 | . 19 . 3 6 18 13 4 Robot Miss Streak 6 | . 2 . 3 2 6 3 5 Penetration Max . | . . . . . . . . Secondary Targets 5 | . . . . . 5 . . Max Gunslinging Chain 1 | . . . . . 1 . . Shots Hit Robots 401 | . 77 . 20 16 204 58 26 Core Hits 189 | . 39 . 21 3 104 18 4 Critical Hits 1 | . . . . . 1 . . Critical Kills . | . . . . . . . . Critical Parts Destroyed 1 | . . . . . 1 . . Melee Attacks 40 | . 6 . 15 . 18 1 . Impact 6 | . 6 . . . . . . Slashing 34 | . . . 15 . 18 1 . Piercing . | . . . . . . . . Sneak Attacks 5 | . . . 1 . 3 1 . Combat Hostiles . | . . . . . . . . Follow-up Attacks . | . . . . . . . . Damage Inflicted 9460 | . 1037 . 1136 254 5429 1172 432 Guns 6271 | . 957 . 47 254 3526 1055 432 Cannons . | . . . . . . . . Explosions 1627 | . 80 . 290 . 1257 . . Melee 1562 | . . . 799 . 646 117 . Ramming . | . . . . . . . . Kinetic 3256 | . 759 . 47 254 2196 . . Thermal 2817 | . . . . . 1330 1055 432 Explosive 1627 | . 80 . 290 . 1257 . . Electromagnetic 198 | . 198 . . . . . . Impact . | . . . . . . . . Slashing 1562 | . . . 799 . 646 117 . Piercing . | . . . . . . . . Highest Corruption 4 | . 3 3 3 3 . 4 4 Average Corruption 3 | . 2 3 3 3 . 2 4 Corruption Purged . | . . . . . . . . Effects 56 | . 7 4 14 2 . 15 14 Message Errors 15 | . 2 1 3 . . 4 5 Matter Fused 10 | . 1 2 4 . . 1 2 Heat Flow Errors 11 | . 1 1 4 . . 3 2 Energy Discharges 6 | . 1 . 2 . . 2 1 Data Loss (minor) 5 | . 1 . . . . 2 2 Targeting Errors 8 | . 1 . 1 1 . 3 2 Weapon Failures 1 | . . . . 1 . . . Overload Shots . | . . . . . . . . Overflow Damage 169 | . . . 8 . 161 . . Projectiles . | . . . . . . . . Explosions 37 | . . . 8 . 29 . . Melee 132 | . . . . . 132 . . Knockbacks . | . . . . . . . . Impact . | . . . . . . . . Kinetic . | . . . . . . . . Secondary . | . . . . . . . . Self-Inflicted Damage 134 | . 32 . . . 102 . . Shots 3 | . 1 . . . 2 . . Rammed . | . . . . . . . . Targets Rammed . | . . . . . . . . Kicked . | . . . . . . . . Crushed . | . . . . . . . . Highest Temperature 426 | . 266 182 131 120 426 336 294 Average Temperature 86 | . 44 97 47 48 86 159 100 Received Heat Transfer 1320 | . 171 . 20 36 1021 72 . Effects 6 | . . . . . 3 1 2 Shutdowns 2 | . . . . . 2 . . Energy Bleed 1 | . . . . . . 1 . Interference 2 | . . . . . . . 2 Damage (minor) 1 | . . . . . 1 . . Siege Activations . | . . . . . . . . Robots Corrupted . | . . . . . . . . Combat Hostiles . | . . . . . . . . Parts Fried . | . . . . . . . . Impact Corruptions . | . . . . . . . . Robots Melted . | . . . . . . . . Combat Hostiles . | . . . . . . . . Parts Melted 8 | . . . . . 5 3 . Heat Transferred 5328 | . . . . . 2590 1887 851 Parts Sabotaged . | . . . . . . . . Parts Stolen 9 | . . . . . . . 9 Parts Stripped . | . . . . . . . . Power Chain Reactions . | . . . . . . . . Missiles Intercepted . | . . . . . . . . Alert | -11 -10 -10 -10 -9 -8 -7 -7 ------- Run | Scr Mat Min Exi Min Mat Fac Low Peak Influence 714 | . 240 14 . 50 714 359 . Average Influence 256 | . 98 14 . 39 371 217 . Maximum Alert Level 3 | . 1 . . . 3 1 . Low Security (%) 45 | . 82 100 . 100 22 44 . Level 1 31 | . 17 . . . 33 55 . Level 2 22 | . . . . . 43 . . Level 3 . | . . . . . . . . Level 4 . | . . . . . . . . Level 5 . | . . . . . . . . High Security . | . . . . . . . . Max Security . | . . . . . . . . Squads Dispatched 11 | . 3 . . . 4 4 . Investigation 4 | . 1 . . . . 3 . Extermination 1 | . . . . . . 1 . Reinforcement 5 | . 2 . . . 3 . . Assault 1 | . . . . . 1 . . Garrison . | . . . . . . . . Intercept . | . . . . . . . . Construction Impeded . | . . . . . . . . Haulers Reinforced . | . . . . . . . . Stealth | -11 -10 -10 -10 -9 -8 -7 -7 --------- Run | Scr Mat Min Exi Min Mat Fac Low Distress Signals 10 | . 1 . . . 9 . . Communications Jammed . | . . . . . . . . Distress Signals . | . . . . . . . . Times Spotted 150 | . 36 . 7 2 85 11 9 Peak Tracking Total 9 | . 4 . 9 2 8 3 2 Tactical Retreats 8 | . . . . . 7 1 . Traps | -11 -10 -10 -10 -9 -8 -7 -7 ------- Run | Scr Mat Min Exi Min Mat Fac Low Traps Triggered 7 | . 5 . . . . 2 . Indirectly . | . . . . . . . . Trap Hack Attempts . | . . . . . . . . Triggered . | . . . . . . . . Disarmed . | . . . . . . . . Reprogrammed . | . . . . . . . . Reused . | . . . . . . . . Traps Extracted . | . . . . . . . . Installed . | . . . . . . . . Triggered . | . . . . . . . . Machines | -11 -10 -10 -10 -9 -8 -7 -7 ---------- Run | Scr Mat Min Exi Min Mat Fac Low Machines Disabled 7 | . 1 . 2 . 4 . . Max in Single Turn 1 | . 1 . 1 . 1 . . Garrison Access 1 | . . . . . 1 . . Machines Sabotaged . | . . . . . . . . Garrisons Compromised . | . . . . . . . . Overloaded Fab Kills . | . . . . . . . . Fab Network Shutdowns . | . . . . . . . . Hacking | -11 -10 -10 -10 -9 -8 -7 -7 --------- Run | Scr Mat Min Exi Min Mat Fac Low Machines Accessed 23 | . 6 . 2 . 9 6 . Terminals 16 | . 6 . . . 6 4 . Fabricators 1 | . . . . . . 1 . Repair Stations . | . . . . . . . . Recycling Units . | . . . . . . . . Scanalyzers 3 | . . . . . 2 1 . Garrison Access 1 | . . . . . 1 . . Total Hacks 64 | . 18 . 2 . 30 14 . Successful 43 | . 10 . 2 . 23 8 . Failed 21 | . 8 . . . 7 6 . Catastrophic 2 | . 1 . . . . 1 . Database Lockouts . | . . . . . . . . Manual 32 | . 14 . 1 . 15 2 . Terminals 50 | . 18 . . . 23 9 . Fabricators 3 | . . . . . . 3 . Repair Stations . | . . . . . . . . Recycling Units . | . . . . . . . . Scanalyzers 8 | . . . . . 6 2 . Garrison Access 1 | . . . . . 1 . . Terminal Hacks 25 | . 5 . 2 . 13 5 . Record 1 | . . . 1 . . . . Part Schematic 5 | . 1 . . . 4 . . Prototype ID Bank 2 | . 1 . . . 1 . . Branch Access Points 2 | . . . . . 1 1 . Terminal Index 3 | . 1 . . . 1 1 . Scanalyzer Index 1 | . . . . . 1 . . Alert Level 1 | . 1 . . . . . . Unreport Threat 4 | . 1 . . . 2 1 . Locate Traps 1 | . . . . . . 1 . Registered Components 1 | . . . . . . 1 . Zone Layout 3 | . . . . . 3 . . EX-Prototype ID Bank 1 | . . . 1 . . . . Fabricator Hacks 1 | . . . . . . 1 . Load Schematic 1 | . . . . . . 1 . Repair Station Hacks . | . . . . . . . . Recycling Unit Hacks . | . . . . . . . . Scanalyzer 7 | . . . . . 5 2 . Insert Component 3 | . . . . . 2 1 . Analyze 4 | . . . . . 3 1 . Garrison Access Hacks 1 | . . . . . 1 . . Seal Access 1 | . . . . . 1 . . Unauthorized Hacks 9 | . 5 . . . 4 . . Terminals 9 | . 5 . . . 4 . . Track 1 | . . . . . 1 . . Assimilate 2 | . 2 . . . . . . Botnet 3 | . 1 . . . 2 . . Operators 3 | . 2 . . . 1 . . Fabricators . | . . . . . . . . Repair Stations . | . . . . . . . . Recycling Units . | . . . . . . . . Scanalyzers . | . . . . . . . . Garrison Access . | . . . . . . . . Data Cores Recovered . | . . . . . . . . Used . | . . . . . . . . Hacking Detections 20 | . 6 . . . 8 6 . Full Trace Events 4 | . 1 . . . 1 2 . Feedback Events . | . . . . . . . . Feedback Blocked . | . . . . . . . . Robot Schematics Acquired . | . . . . . . . . Robots Built . | . . . . . . . . Matter . | . . . . . . . . Time . | . . . . . . . . Total Robot Build Rating . | . . . . . . . . Part Schematics Acquired 7 | . 1 . . . 5 1 . Parts Built . | . . . . . . . . Matter . | . . . . . . . . Time . | . . . . . . . . Total Part Build Rating . | . . . . . . . . Parts Repaired . | . . . . . . . . Time . | . . . . . . . . Parts Recycled . | . . . . . . . . Recycled Matter . | . . . . . . . . Retrieved Matter . | . . . . . . . . Retrieved Components . | . . . . . . . . Parts Scanalyzed 3 | . . . . . 2 1 . Part Schematics Acquired 3 | . . . . . 2 1 . Parts Damaged . | . . . . . . . . Bothacking | -11 -10 -10 -10 -9 -8 -7 -7 ------------ Run | Scr Mat Min Exi Min Mat Fac Low Used RIF Installer . | . . . . . . . . Robots Hacked . | . . . . . . . . Non-combat . | . . . . . . . . Combat . | . . . . . . . . Robot Hacks Applied . | . . . . . . . . Relay Couplers Released . | . . . . . . . . Robots Rewired . | . . . . . . . . Allies Hacked . | . . . . . . . . Hacks Repelled . | . . . . . . . . Allies | -11 -10 -10 -10 -9 -8 -7 -7 -------- Run | Scr Mat Min Exi Min Mat Fac Low Total Allies . | . . . . . . . . Largest Group . | . . . . . . . . Highest-Rated Group . | . . . . . . . . Highest-Rated Ally . | . . . . . . . . Total Orders . | . . . . . . . . Ally Attacks . | . . . . . . . . Total Damage . | . . . . . . . . Kills . | . . . . . . . . Allies Corrupted . | . . . . . . . . Allies Melted . | . . . . . . . . Intel | -11 -10 -10 -10 -9 -8 -7 -7 ------- Run | Scr Mat Min Exi Min Mat Fac Low Robot Analysis Total . | . . . . . . . . Derelict Logs Recovered 1 | . . 1 . . . . . Drone Launches . | . . . . . . . . Drone Recoveries . | . . . . . . . . Exploration | -11 -10 -10 -10 -9 -8 -7 -7 ------------- Run | Scr Mat Min Exi Min Mat Fac Low Turns Passed 6392 | . 1310 143 579 92 2570 850 848 Spaces Moved 3204 | 1 643 80 276 32 1224 459 489 Core . | . . . . . . . . Treads 9 | . . . 9 . . . . Legs 3195 | 1 643 80 267 32 1224 459 489 Wheels . | . . . . . . . . Hover . | . . . . . . . . Flight . | . . . . . . . . Fastest Speed 120 | 120 120 180 160 180 150 150 152 Average Speed 155 | 120 154 180 180 180 150 150 152 Slowest Speed 210 | 120 180 180 210 180 180 152 153 Overloaded Moves . | . . . . . . . . Propulsion Burnouts . | . . . . . . . . Robots Hopped . | . . . . . . . . Cave-ins Triggered . | . . . . . . . . Exploration Rate (%) 38 | 2 82 17 51 6 84 11 57 Regions Visited 7 Branch Regions 4 Pre-discovered Areas 1 | . . . 1 . . . . Known Exits Taken 1 | . . . . . . 1 . Unknown Exits Taken 6 | 1 1 1 1 1 1 . . Scrap Searched 2 | . . . . . . . 2 Spaces Dug 23 | . 2 . . . 21 . . Terrain Destroyed 109 | . 15 . 18 . 76 . . Melee 12 | . 2 . . . 10 . . Projectile 3 | . . . . . 3 . . AOE 94 | . 13 . 18 . 63 . . Actions | -11 -10 -10 -10 -9 -8 -7 -7 --------- Run | Scr Mat Min Exi Min Mat Fac Low Total 4046 | . 850 79 336 48 1658 539 536 Wait 248 | . 102 . . . 132 12 2 Move 3197 | . 642 79 275 31 1223 458 489 Hop . | . . . . . . . . Pick Up 90 | . 21 . 15 . 39 11 4 Fast Attach 9 | . 1 . . . 6 2 . Attach 37 | . 1 . 9 . 21 4 2 Detach 3 | . . . . . 2 . 1 Swap 53 | . 9 . 7 3 28 5 1 Drop 57 | . 13 . 9 2 20 7 6 Fire 312 | . 55 . 6 12 169 39 31 Melee 40 | . 6 . 15 . 18 1 . Ram . | . . . . . . . . Kick . | . . . . . . . . Crush . | . . . . . . . . Escape Stasis . | . . . . . . . . Rewire . | . . . . . . . . Trap . | . . . . . . . . Miscellaneous . | . . . . . . . . Route ------- -11/Scrapyard -10/Materials (discovered 4 exits: [*Mat x3] / [*Min]) -10/Mines -10/Exiles -9/Mines -8/Materials (discovered 2 exits: *Fac x2) -7/Factory (discovered 2 exits: *Low x2) -7/Lower Caves History --------- Turn | Location | Event 1 | -11/Scrapyard | Discovered new exit (range 0) 1 | -11/Scrapyard | Entered Materials 223 | -10/Materials | Discovered new exit (range 16) 311 | -10/Materials | Build established: Mutant 347 | -10/Materials | Discovered new exit (range 7) 729 | -10/Materials | Discovered new exit (range 6) 988 | -10/Materials | Discovered new exit (range 6) 1311 | -10/Materials | Entered Mines 1331 | -10/Mines | Met a Derelict bent on vengeance 1430 | -10/Mines | Learned Materials security intel 1446 | -10/Mines | Deemed a non-threat by the Exiles lab entrance 1446 | -10/Mines | Discovered new exit (range 5) 1454 | -10/Mines | Entered Exiles 1498 | -10/Exiles | Met 8R-AWN 1530 | -10/Exiles | Met EX-HEX 1607 | -10/Exiles | Learned location of Zion (-6) 1638 | -10/Exiles | Met EX-BIN 1663 | -10/Exiles | Aligned with FarCom system 1665 | -10/Exiles | Given EX-Vault access code 1706 | -10/Exiles | Opened EX-Vault 1718 | -10/Exiles | Found Field Lobotomy Kit 1721 | -10/Exiles | Found Longsword +1 1726 | -10/Exiles | Found Cloak of Protection 1767 | -10/Exiles | Warned to stay clear of 0b10 Research branches 1901 | -10/Exiles | Attacked by the Exiles 1916 | -10/Exiles | Core integrity fell below 50% 1934 | -10/Exiles | Core integrity fell below 20% 1942 | -10/Exiles | Destroyed 8R-AWN 1973 | -10/Exiles | Found Prototype Protection 1984 | -10/Exiles | Lost 7 parts (2p4n1w) 2008 | -10/Exiles | Discovered new exit (range 14) 2033 | -10/Exiles | Stole three prototypes: Cloak of Protection, Field Lobotomy Kit, Longsword +1 2033 | -10/Exiles | Entered Mines 2107 | -9/Mines | Discovered new exit (range 11) 2125 | -9/Mines | Entered Materials 2125 | -8/Materials | Evolved 4 slots: Propulsion x1, Utility x3 2127 | -8/Materials | Identified 8R-AWN's Armor/EX 2729 | -8/Materials | Build established: Scavenger-Mutant 3026 | -8/Materials | Discovered new exit (range 7) 3410 | -8/Materials | Discovered new exit (range 3) 3911 | -8/Materials | Core integrity fell below 50% 4525 | -8/Materials | First assault squad dispatched 4559 | -8/Materials | Core integrity fell below 20% 4591 | -8/Materials | Destroyed 7 combat bots 4604 | -8/Materials | Lost 6 parts (3n3w) 4695 | -8/Materials | Entered Factory 4695 | -7/Factory | Evolved 2 slots: Propulsion x1, Utility x1 4843 | -7/Factory | Identified exit to Lower Caves 5545 | -7/Factory | Entered Lower Caves 5669 | -7/Lower Caves | Spotted JZ-VVP(f) 5669 | -7/Lower Caves | Spotted D3-YH4(f) 5670 | -7/Lower Caves | Encountered a Master Thief 5670 | -7/Lower Caves | Encountered a Master Thief 5671 | -7/Lower Caves | Longsword +1 stolen by Master Thief 5676 | -7/Lower Caves | Field Lobotomy Kit stolen by Master Thief 5745 | -7/Lower Caves | Spotted UT-OWR(f) 5746 | -7/Lower Caves | Cloak of Protection stolen by Master Thief 5747 | -7/Lower Caves | Encountered a Master Thief 5749 | -7/Lower Caves | Spotted AU-4U6(f) 5750 | -7/Lower Caves | Encountered a Master Thief 5754 | -7/Lower Caves | 8R-AWN's Armor/EX stolen by Master Thief 5806 | -7/Lower Caves | Spotted AQ-ZIS(f) 5807 | -7/Lower Caves | Encountered a Master Thief 5823 | -7/Lower Caves | Adv. Weapon Cycler stolen by Master Thief 6286 | -7/Lower Caves | Spotted Q7-Q0L(f) 6286 | -7/Lower Caves | Spotted V9-E7V(f) 6287 | -7/Lower Caves | Encountered a Master Thief 6287 | -7/Lower Caves | Encountered a Master Thief 6289 | -7/Lower Caves | Adv. Myomer Leg stolen by Master Thief 6298 | -7/Lower Caves | Lgt. Angular Momentum Engine stolen by Master Thief 6348 | -7/Lower Caves | Spotted P5-P7U(f) 6348 | -7/Lower Caves | Spotted S2-2EI(f) 6349 | -7/Lower Caves | Encountered a Master Thief 6349 | -7/Lower Caves | Encountered a Master Thief 6353 | -7/Lower Caves | Rnf. Fission Core stolen by Master Thief 6373 | -7/Lower Caves | Lgt. Angular Momentum Engine stolen by Master Thief 6393 | -7/Lower Caves | Self-destructed Last Messages --------------- 06165_ System corrupted: Matter fused (-9). 06195_ System corrupted: Component data lost. 06199_ JP-FMZ(k) breaks down the debris. 06245_ OTNE9 W